bitfinex/quotes_SOLUSD_20250118
["timestamp","ask_amount","ask_price","bid_price","bid_amount"]
[1737216038132,30.99056501,258.0,257.88,30.99056501]
[1737216038335,30.99056501,258.06,257.95,30.99056501]
[1737216038540,0.58206789,258.21,258.05,30.99056501]
[1737216038741,30.99056501,258.19,258.07,30.99056501]
[1737216038936,0.58206789,258.18,258.08,0.5809656]
[1737216039121,0.58206789,258.28,257.94,0.58107155]
[1737216039322,23.776884,258.23,257.94,0.58107155]
[1737216039517,23.776884,258.23,257.79,15.533233]
[1737216039518,23.776884,258.19,257.8,0.58118278]
[1737216039745,0.58206789,258.18,257.8,0.58118278]
[1737216039923,30.99056501,257.96,257.84,30.99056501]
[1737216040238,30.99056501,257.98,257.86,30.99056501]
[1737216040540,30.99056501,258.02,257.9,30.99056501]
[1737216040740,3.8749,258.08,257.84,0.58139745]
[1737216040741,30.99056501,257.94,257.84,0.58139745]
[1737216040937,30.99056501,257.94,257.79,0.03]
[1737216041555,30.99056501,258.08,257.79,0.03]
[1737216041556,30.99056501,257.84,257.79,0.03]
[1737216041744,30.99056501,257.82,257.73,0.58182381]
[1737216041950,0.58206789,258.04,257.81,30.99056501]
[1737216042119,30.99056501,258.01,257.92,20.0]
[1737216042326,0.58206789,258.0,257.92,20.0]
[1737216042629,30.99056501,258.03,257.94,20.0]
[1737216042831,19.81877048,258.22,257.89,30.99056501]
[1737216042832,30.99056501,258.01,257.89,30.99056501]
[1737216043050,0.58206789,258.0,257.77,0.58141555]
[1737216043251,30.99056501,257.88,257.75,30.99056501]
[1737216043451,30.99056501,257.76,257.61,0.61168006]
[1737216043655,7.876,257.99,257.61,0.61168006]
[1737216043656,30.99056501,257.78,257.65,30.99056501]
[1737216043949,30.99056501,257.82,257.69,30.99056501]
[1737216044151,30.99056501,257.82,257.7,0.58185699]
[1737216044329,30.99056501,257.86,257.74,30.99056501]
[1737216044532,30.99056501,257.88,257.76,30.99056501]
[1737216044747,30.99056501,257.9,257.81,20.0]
[1737216044942,30.99056501,257.88,257.82,0.5816895]
[1737216045125,30.99056501,257.86,257.77,0.58178899]
[1737216045331,30.99056501,257.84,257.75,0.58178087]
[1737216045532,0.58206789,257.83,257.71,0.58185037]
[1737216045926,30.99056501,257.86,257.77,20.0]
[1737216046125,30.99056501,257.86,257.78,0.58174779]
[1737216046327,30.99056501,257.88,257.78,0.58174779]
[1737216046646,30.99056501,257.88,257.76,30.99056501]
[1737216046834,30.99056501,257.84,257.77,0.58172427]
[1737216047031,30.99056501,257.88,257.77,0.58172427]
[1737216047227,30.99056501,257.93,257.81,50.99056501]
[1737216047442,30.99056501,257.97,257.85,30.99056501]
[1737216047623,0.58206789,258.05,257.99,20.0]
[1737216047832,0.58206789,258.05,257.67,0.03]
[1737216047833,30.99056501,258.17,258.03,30.99056501]
[1737216048024,30.99056501,258.18,258.05,30.99056501]
[1737216048250,30.99056501,258.18,258.04,0.58114813]
[1737216048251,30.99056501,258.2,258.1,20.0]
[1737216048441,3.8725,258.23,258.08,0.58100915]
[1737216048442,0.58206789,258.19,258.08,0.58100915]
[1737216048739,9.6791,258.29,257.92,42.55056501]
[1737216048740,30.99056501,258.26,258.15,30.99056501]
[1737216048931,30.99056501,258.22,258.09,30.99056501]
[1737216049141,0.58206789,258.21,258.05,30.99056501]
[1737216049336,30.99056501,258.16,258.06,0.5811213]
[1737216049543,30.99056501,258.16,258.06,20.0]
[1737216049544,0.58206789,258.15,258.06,20.0]
[1737216049745,30.99056501,258.12,258.07,0.58115328]
[1737216050050,0.58206789,258.11,258.0,0.58115051]
[1737216050261,30.99056501,258.17,258.07,20.0]
[1737216050547,30.99056501,258.28,258.18,20.0]
[1737216050759,4.45226789,258.39,258.19,0.58082455]
[1737216050950,30.99056501,258.4,258.03,0.5806957]
[1737216051130,19.75523305,258.54,258.11,11.56]
[1737216051331,30.99056501,258.56,258.44,30.99056501]
[1737216051555,0.58206789,258.55,258.45,0.58021346]
[1737216051757,30.99056501,258.65,258.5,30.99056501]
[1737216052052,30.99056501,258.71,258.55,20.0]
[1737216052259,30.99056501,258.73,258.6,30.99056501]
[1737216052451,0.063,258.74,258.41,12.694]
[1737216052452,0.063,258.74,258.72,30.99056501]
[1737216052639,0.063,258.74,258.73,0.57958179]
[1737216053149,0.063,258.74,258.66,30.99056501]
[1737216053352,0.063,258.74,258.67,0.57967218]
[1737216053561,30.99056501,258.71,258.57,0.57969929]
[1737216053863,0.063,258.74,258.7,30.99056501]
[1737216054039,0.063,258.74,258.73,50.99056501]
[1737216054633,0.58206789,259.01,258.73,50.99056501]
[1737216054634,0.58206789,259.03,258.74,23.776884]
[1737216054842,0.063,259.0,258.93,30.99056501]
[1737216055049,0.063,259.0,258.96,20.0]
[1737216055235,0.063,259.0,258.72,30.99056501]
[1737216055236,0.063,259.0,258.97,0.57907526]
[1737216055433,30.99056501,258.99,258.87,30.99056501]
[1737216055633,30.99056501,258.97,258.88,0.57924926]
[1737216055829,0.063,259.0,258.73,12.694]
[1737216055830,0.063,259.0,258.89,30.99056501]
[1737216056061,30.99056501,258.93,258.74,0.57920405]
[1737216056263,30.99056501,258.87,258.75,30.99056501]
[1737216056445,30.99056501,258.89,258.76,0.57943502]
[1737216056636,30.99056501,258.89,258.77,30.99056501]
[1737216056837,30.99056501,258.85,258.78,0.57942378]
[1737216057134,30.99056501,258.89,258.76,30.99056501]
[1737216057351,30.99056501,258.85,258.77,0.57944239]
[1737216057553,30.99056501,258.91,258.79,30.99056501]
[1737216057755,30.99056501,258.89,258.8,0.5794526]
[1737216058341,15.47296,258.88,258.8,20.5794526]
[1737216058542,15.47296,258.88,258.8,0.5794526]
[1737216058859,15.47296,258.88,258.78,20.28707065]
[1737216059439,30.99056501,258.83,258.76,0.28708041]
[1737216059639,30.99056501,258.87,258.75,30.99056501]
[1737216059856,15.47296,258.88,258.77,30.99056501]
[1737216060149,15.47296,258.88,258.83,30.99056501]
[1737216060359,15.47296,258.88,258.84,0.2868486]
[1737216060552,30.99056501,258.85,258.67,30.99056501]
[1737216060749,30.99056501,258.73,258.68,0.28750951]
[1737216060960,30.99056501,258.73,258.6,30.99056501]
[1737216061151,0.7248026,258.72,258.62,30.99056501]
[1737216061351,0.7248026,258.86,258.67,30.99056501]
[1737216061548,0.7248026,258.86,258.68,0.28778339]
[1737216061549,30.99056501,258.81,258.68,0.28778339]
[1737216061745,0.7245155,258.8,258.68,0.28778339]
[1737216061950,30.99056501,258.8,258.69,30.99056501]
[1737216062259,30.99056501,258.84,258.72,30.99056501]
[1737216062568,0.72444388,258.87,258.74,30.99056501]
[1737216062771,15.47296,258.88,258.78,30.99056501]
[1737216062967,30.99056501,258.86,258.74,30.99056501]
[1737216063142,46.46352501,258.88,258.76,30.99056501]
[1737216063343,30.99056501,258.86,258.77,0.28710408]
[1737216063544,15.47296,258.88,258.78,30.99056501]
[1737216063883,15.47296,258.88,258.83,20.0]
[1737216064045,15.47296,258.88,258.84,0.28703783]
[1737216064565,30.99056501,258.86,258.79,0.28696198]
[1737216064866,9.44081624,259.19,258.92,20.0]
[1737216065159,30.99056501,259.22,258.88,20.0]
[1737216065160,30.99056501,259.17,259.06,30.99056501]
[1737216065742,34.84876501,259.19,259.06,30.99056501]
[1737216065944,30.99056501,259.15,259.04,30.99056501]
[1737216066240,30.99056501,259.19,259.06,54.76744901]
[1737216066436,0.063,259.26,259.09,20.0]
[1737216066657,0.063,259.26,259.1,0.28435007]
[1737216066840,0.063,259.26,259.25,30.99056501]
[1737216067041,0.063,259.39,259.25,42.83441592]
[1737216067240,0.063,259.52,259.37,30.99056501]
[1737216067441,0.78548209,259.52,259.38,0.28344368]
[1737216067665,4.63946414,259.49,259.21,0.28398882]
[1737216067860,30.99056501,259.36,259.23,30.99056501]
[1737216068172,30.99056501,259.41,259.24,0.2845826]
[1737216068369,30.99056501,259.39,259.26,30.99056501]
[1737216068566,30.99056501,259.39,259.27,0.28426058]
[1737216068873,30.99056501,259.43,259.3,30.99056501]
[1737216069174,0.063,259.49,259.42,23.776884]
[1737216069353,0.063,259.49,259.43,0.28297168]
[1737216069760,0.063,259.49,259.44,30.99056501]
[1737216070062,0.063,259.49,259.48,30.99056501]
[1737216070255,0.063,259.52,259.48,30.99056501]
[1737216070463,0.063,259.52,259.49,0.28313493]
[1737216070665,0.063,259.52,259.45,0.283416]
[1737216070970,0.063,259.52,259.41,0.28345733]
[1737216071176,0.063,259.52,259.46,30.99056501]
[1737216071488,0.063,259.52,259.47,0.2834447]
[1737216071672,0.063,259.52,259.21,0.2831981]
[1737216072379,30.99056501,259.51,259.39,30.99056501]
[1737216072564,0.063,259.52,259.44,20.0]
[1737216072759,0.063,259.52,259.45,0.28334159]
[1737216072956,0.063,259.52,259.18,12.694]
[1737216072957,0.063,259.52,259.41,30.99056501]
[1737216073179,0.063,259.52,259.43,30.99056501]
[1737216073489,30.99056501,259.5,259.44,0.28337624]
[1737216073670,0.063,259.52,259.45,31.27411565]
[1737216074190,0.063,259.52,259.45,0.28355064]
[1737216074367,0.063,259.52,259.42,20.28335544]
[1737216074565,30.99056501,259.48,259.42,0.28335544]
[1737216074785,30.99056501,259.48,259.37,0.28362797]
[1737216074967,30.99056501,259.46,259.37,0.28362797]
[1737216075162,0.063,259.52,259.42,30.99056501]
[1737216075367,0.063,259.52,259.18,12.694]
[1737216075368,0.063,259.52,259.48,20.0]
[1737216075570,31.05356501,259.52,259.49,0.28314559]
[1737216075764,30.99056501,259.5,259.42,0.28332945]
[1737216075970,30.99056501,259.5,259.38,30.99056501]
[1737216076163,0.063,259.52,259.43,30.99056501]
[1737216076474,0.063,259.52,259.44,0.28320756]
[1737216076863,30.99056501,259.51,259.44,0.28320756]
[1737216077056,30.99056501,259.51,259.08,43.19283883]
[1737216077057,0.063,259.52,259.4,0.28337441]
[1737216077258,30.99056501,259.48,259.38,0.28350287]
[1737216077479,30.99056501,259.46,259.36,0.28369866]
[1737216077877,30.99056501,259.38,259.34,0.28375504]
[1737216078061,30.99056501,259.4,259.28,30.99056501]
[1737216078261,30.99056501,259.39,259.29,0.28394575]
[1737216078683,30.99056501,259.39,259.29,24.06082975]
[1737216078892,30.99056501,259.44,259.33,23.776884]
[1737216079085,30.99056501,259.46,259.34,0.28373868]
[1737216079299,30.99056501,259.48,259.35,30.99056501]
[1737216079499,30.99056501,259.46,259.38,20.0]
[1737216079782,30.99056501,259.51,259.42,20.0]
[1737216079979,30.99056501,259.47,259.43,0.28343168]
[1737216080177,0.063,259.52,259.36,0.28371982]
[1737216080379,30.99056501,259.45,259.36,0.28371982]
[1737216080685,30.99056501,259.41,259.36,0.28371982]
[1737216080872,30.99056501,259.38,259.29,0.28400629]
[1737216081183,30.99056501,259.3,259.27,0.28419893]
[1737216081375,30.99056501,259.32,259.2,31.27518126]
[1737216081568,30.99056501,259.4,259.29,30.99056501]
[1737216081768,30.99056501,259.37,259.3,0.28396818]
[1737216081969,30.99056501,259.37,259.28,0.28419269]
[1737216082192,30.99056501,259.39,259.32,20.0]
[1737216082362,8.50914433,259.47,259.34,20.0]
[1737216082680,30.99056501,259.44,259.35,0.28392418]
[1737216082885,9.6322,259.55,259.35,0.28392418]
[1737216082886,30.99056501,259.48,259.37,30.99056501]
[1737216083186,30.99056501,259.48,259.38,31.27434329]
[1737216083367,30.99056501,259.46,259.38,0.28377828]
[1737216083684,31.05356501,259.52,259.44,23.776884]
[1737216083879,0.063,259.52,259.47,20.0]
[1737216084077,0.063,259.52,259.48,0.28314749]
[1737216084465,0.063,259.52,259.5,30.99056501]
[1737216084788,0.063,259.52,259.51,24.05958868]
[1737216085185,0.1,259.6,259.54,43.776884]
[1737216085387,0.1,259.6,259.58,30.99056501]
[1737216085578,0.1,259.6,259.59,0.28229807]
[1737216086687,0.1,259.6,259.59,24.05918207]
[1737216088102,0.1,259.6,259.59,0.28229807]
[1737216088392,0.1,259.6,259.57,0.28261573]
[1737216088995,0.1,259.6,259.59,20.0]
[1737216089292,0.1,259.6,259.59,44.05933801]
[1737216089895,0.1,259.6,259.59,0.28245401]
[1737216090088,0.1,259.6,259.55,0.28275636]
[1737216090394,30.99056501,259.58,259.54,0.28253903]
[1737216090574,30.99056501,259.56,259.37,0.28320049]
[1737216090772,3.9521,259.6,259.37,0.28320049]
[1737216090987,30.99056501,259.53,259.43,30.99056501]
[1737216091189,30.99056501,259.5,259.44,0.28337166]
[1737216091390,30.99056501,259.5,259.21,26.77]
[1737216091391,0.1,259.6,259.47,30.99056501]
[1737216091698,0.063,259.6,259.59,30.99056501]
[1737216091897,0.063,259.6,259.58,30.99056501]
[1737216092072,0.063,259.6,259.59,0.28231316]
[1737216092580,0.063,259.6,259.54,0.28285146]
[1737216092785,0.063,259.6,259.55,0.28280907]
[1737216092984,0.063,259.6,259.54,30.99056501]
[1737216093293,0.063,259.6,259.55,0.28270808]
[1737216093492,0.063,259.6,259.58,20.0]
[1737216093674,0.063,259.6,259.56,0.28264671]
[1737216093883,30.99056501,259.57,259.46,30.99056501]
[1737216094171,3.9152,259.6,259.47,0.28336013]
[1737216094172,13.5454,259.6,259.47,0.28336013]
[1737216094385,30.99056501,259.48,259.31,30.99056501]
[1737216094591,30.99056501,259.42,259.32,0.28398206]
[1737216094784,0.063,259.6,259.4,30.99056501]
[1737216094979,0.063,259.6,259.59,30.99056501]
[1737216095168,0.063,259.6,259.55,30.99056501]
[1737216095374,0.063,259.6,259.59,20.0]
[1737216095679,0.063,259.6,259.59,75.05002192]
[1737216096079,0.063,259.6,259.59,51.27313792]
[1737216096283,0.063,259.6,259.59,0.28257291]
[1737216096483,0.063,259.6,259.59,50.99056501]
[1737216096687,0.063,259.6,259.59,74.76744901]
[1737216096987,0.063,259.6,259.59,50.99056501]
[1737216097382,0.063,259.6,259.57,1.540328]
[1737216097584,0.063,259.6,259.58,0.28266371]
[1737216097782,0.063,259.6,259.59,20.0]
[1737216098810,0.063,259.6,259.59,30.99056501]
[1737216098988,0.063,259.67,259.59,50.99056501]
[1737216099190,0.063,259.67,259.58,0.28266371]
[1737216099191,0.063,259.67,259.66,30.99056501]
[1737216099580,0.063,259.67,259.66,54.76744901]
[1737216099906,30.99056501,259.9,259.66,61.98113002]
[1737216100080,0.72162148,259.98,259.75,30.99056501]
[1737216100081,30.99056501,259.88,259.75,30.99056501]
[1737216100280,0.72162148,259.98,259.78,20.0]
[1737216100591,30.99056501,259.87,259.79,24.05839398]
[1737216100793,30.99056501,259.87,259.79,0.28150998]
[1737216100974,30.99056501,259.87,259.76,0.28153498]
[1737216101188,30.99056501,259.87,259.76,24.05841898]
[1737216101409,30.99056501,259.87,259.79,20.0]
[1737216101701,30.99056501,259.85,259.76,0.28153498]
[1737216102003,30.99056501,259.81,259.74,0.28150828]
[1737216102199,30.99056501,259.81,259.7,30.99056501]
[1737216102408,3.8487,259.83,259.71,0.28176212]
[1737216102589,30.99056501,259.78,259.71,0.28176212]
[1737216102906,30.99056501,259.76,259.67,0.28190539]
[1737216103084,30.99056501,259.74,259.65,0.28202008]
[1737216103403,30.99056501,259.77,259.66,30.99056501]
[1737216103593,30.99056501,259.77,259.67,0.28200199]
[1737216103797,25.93400549,259.8,259.67,0.28200199]
[1737216103798,30.99056501,259.79,259.67,0.28200199]
[1737216103982,30.99056501,259.79,259.68,30.99056501]
[1737216104184,30.99056501,259.79,259.61,11.56]
[1737216104185,30.99056501,259.77,259.69,0.28183892]
[1737216104498,30.99056501,259.79,259.69,0.28183892]
[1737216104985,30.99056501,259.79,259.72,20.0]
[1737216105307,30.99056501,259.79,259.57,15.401795]
[1737216105308,30.99056501,259.77,259.73,0.28192598]
[1737216105599,22.11490549,259.8,259.67,24.05877744]
[1737216105896,22.11490549,259.8,259.67,0.28189344]
[1737216106105,30.99056501,259.79,259.67,31.27245845]
[1737216106681,30.99056501,259.79,259.68,23.776884]
[1737216106986,30.99056501,259.77,259.65,30.99056501]
[1737216107288,30.99056501,259.79,259.69,30.99056501]
[1737216107486,22.11490549,259.8,259.71,30.99056501]
[1737216108205,22.11490549,259.8,259.74,20.0]
[1737216108699,30.99056501,259.76,259.61,30.99056501]
[1737216108877,30.99056501,259.76,259.65,30.99056501]
[1737216109077,30.99056501,259.76,259.68,20.0]
[1737216109682,30.99056501,259.74,259.62,30.99056501]
[1737216109877,30.99056501,259.68,259.56,30.99056501]
[1737216110289,0.72188868,259.78,259.62,30.99056501]
[1737216110491,30.99056501,259.66,259.57,15.402264]
[1737216110778,4.57103833,259.79,259.55,0.063]
[1737216110779,30.99056501,259.58,259.55,0.063]
[1737216110996,51.9649,259.79,259.22,12.7606]
[1737216110997,30.99056501,259.56,259.45,15.402264]
[1737216111202,20.0,259.49,259.22,30.99056501]
[1737216111403,30.99056501,259.31,259.08,12.7606]
[1737216111703,30.99056501,259.29,259.09,11.56]
[1737216111892,30.99056501,259.29,259.18,30.99056501]
[1737216112087,30.99056501,259.34,259.23,30.99056501]
[1737216112289,3.8543,259.45,259.14,12.7906]
[1737216112290,30.99056501,259.28,259.17,30.99056501]
[1737216112498,30.99056501,259.26,259.15,30.99056501]
[1737216112801,30.99056501,259.31,259.21,30.99056501]
[1737216112998,30.99056501,259.33,259.21,30.99056501]
[1737216113318,30.99056501,259.33,259.14,12.7906]
[1737216113319,30.99056501,259.46,259.33,23.776884]
[1737216113491,7.9805,259.52,259.4,20.0]
[1737216113492,30.99056501,259.5,259.4,20.0]
[1737216113800,30.99056501,259.6,259.49,30.99056501]
[1737216114000,30.99056501,259.58,259.47,30.99056501]
[1737216114297,30.99056501,259.61,259.5,30.99056501]
[1737216114500,30.99056501,259.52,259.4,30.99056501]
[1737216114707,30.99056501,259.44,259.34,30.99056501]
[1737216114908,30.99056501,259.48,259.36,30.99056501]
[1737216115290,30.99056501,259.42,259.14,12.7906]
[1737216115500,30.99056501,259.36,259.25,30.99056501]
[1737216115894,30.99056501,259.27,259.18,30.99056501]
[1737216116298,30.99056501,259.27,259.14,12.7906]
[1737216116299,30.99056501,259.19,259.14,12.7906]
[1737216116505,30.99056501,259.19,259.14,0.03]
[1737216116702,23.776884,259.33,259.17,0.063]
[1737216116901,30.99056501,259.24,259.17,0.063]
[1737216117094,0.72348836,259.32,259.17,0.063]
[1737216117095,30.99056501,259.2,259.17,0.063]
[1737216117610,30.99056501,259.18,259.17,0.063]
[1737216117913,30.99056501,259.2,259.17,0.063]
[1737216118088,0.72347779,259.32,259.05,15.430881]
[1737216118417,0.72347779,259.32,259.09,30.99056501]
[1737216118418,30.99056501,259.19,259.09,30.99056501]
[1737216118598,30.99056501,259.21,259.09,30.99056501]
[1737216118798,30.99056501,259.16,259.05,30.99056501]
[1737216118990,30.99056501,259.12,259.01,30.99056501]
[1737216119310,30.99056501,259.23,259.11,30.99056501]
[1737216119487,30.99056501,259.18,258.92,13.4962]
[1737216119690,3.8563,259.31,259.12,30.99056501]
[1737216120012,30.99056501,259.35,259.25,20.0]
[1737216120192,30.99056501,259.36,259.26,30.99056501]
[1737216120514,30.99056501,259.4,259.28,30.99056501]
[1737216120803,0.72302989,259.39,259.02,3.2743008]
[1737216121007,0.72303888,259.48,259.02,3.2743008]
[1737216121182,0.72303888,259.48,259.01,20.0]
[1737216121686,0.72303888,259.48,259.27,30.99056501]
[1737216121888,30.99056501,259.35,259.25,30.99056501]
[1737216122106,0.72305607,259.34,259.25,20.0]
[1737216122289,30.99056501,259.36,259.24,30.99056501]
[1737216122483,30.99056501,259.34,259.24,30.99056501]
[1737216122710,0.72313725,259.33,259.24,30.99056501]
[1737216123003,0.72313725,259.33,259.22,30.99056501]
[1737216123208,30.99056501,259.4,259.28,30.99056501]
[1737216123401,30.99056501,259.42,259.31,20.0]
[1737216123611,30.99056501,259.44,259.32,30.99056501]
[1737216123942,30.99056501,259.38,259.27,30.99056501]
[1737216124117,0.72301739,259.37,259.03,41.62]
[1737216124408,30.99056501,259.33,259.2,30.99056501]
[1737216124586,30.99056501,259.25,259.14,30.99056501]
[1737216124786,30.99056501,259.19,259.07,30.99056501]
[1737216124998,0.72350431,259.18,258.76,41.62]
[1737216125200,0.72350431,259.18,258.71,1.52234015]
[1737216125706,3.858,259.2,258.71,1.52234015]
[1737216125887,0.72359498,259.21,258.73,193.03656779]
[1737216126092,4.58159498,259.21,258.76,11.56]
[1737216126288,4.58159498,259.21,258.73,193.03656779]
[1737216126289,30.99056501,259.09,258.98,30.99056501]
[1737216126495,30.99056501,259.07,258.94,30.99056501]
[1737216126712,30.99056501,259.05,258.94,30.99056501]
[1737216126895,30.99056501,259.09,258.96,30.99056501]
[1737216127099,30.99056501,259.07,258.96,30.99056501]
[1737216127315,30.99056501,259.04,258.92,30.99056501]
[1737216127617,0.72393214,259.03,258.56,30.99056501]
[1737216127796,30.99056501,258.95,258.84,30.99056501]
[1737216127988,30.99056501,258.93,258.82,30.99056501]
[1737216128188,0.72419878,258.92,258.76,30.99056501]
[1737216128391,30.99056501,258.84,258.73,30.99056501]
[1737216128602,30.99056501,258.75,258.38,12.3491]
[1737216128800,30.99056501,258.75,258.64,44.50306501]
[1737216128991,12.7332,258.97,258.4,3.2743008]
[1737216128992,30.99056501,258.71,258.6,30.99056501]
[1737216129190,30.99056501,258.71,258.33,7.459]
[1737216129191,30.99056501,258.64,258.53,15.462177]
[1737216129386,30.99056501,258.56,258.53,15.462177]
[1737216129608,12.7332,258.7,258.1,12.3491]
[1737216129609,30.99056501,258.54,258.1,12.3491]
[1737216129918,30.99056501,258.49,258.39,30.99056501]
[1737216130126,30.99056501,258.41,258.31,15.475074]
[1737216130298,30.99056501,258.45,258.33,30.99056501]
[1737216130497,30.99056501,258.45,258.24,30.99056501]
[1737216130498,30.99056501,258.35,258.27,15.476838]
[1737216130710,30.99056501,258.35,258.05,2.89960832]
[1737216130711,23.776884,258.33,258.05,2.89960832]
[1737216130912,23.776884,258.33,257.85,13.09201648]
[1737216130913,30.99056501,258.16,257.85,1.53201648]
[1737216131103,19.23210199,258.46,257.85,1.53201648]
[1737216131104,30.99056501,258.09,257.98,30.99056501]
[1737216131301,30.99056501,258.04,257.93,30.99056501]
[1737216131501,0.72672588,258.03,257.97,30.99056501]
[1737216131794,30.99056501,258.16,257.76,42.58056501]
[1737216131999,30.99056501,258.04,257.77,6.01432865]
[1737216132202,0.72677369,258.03,257.76,0.03]
[1737216132393,11.56,258.16,257.76,0.03]
[1737216132595,8.1124,258.07,257.76,0.03]
[1737216132795,11.56,258.03,257.76,0.03]
[1737216132993,0.72778044,258.02,257.67,0.03]
[1737216133202,0.72778044,258.02,257.61,0.03]
[1737216133203,12.7332,257.92,257.61,0.03]
[1737216133414,20.0,257.76,257.19,2.90679424]
[1737216133616,30.99056501,257.52,257.25,30.99056501]
[1737216133797,30.99056501,257.38,257.26,30.99056501]
[1737216133996,3.8834,257.5,257.28,30.99056501]
[1737216133997,30.99056501,257.42,257.28,30.99056501]
[1737216134215,30.99056501,257.37,257.22,30.99056501]
[1737216134415,30.99056501,257.37,257.19,2.90679424]
[1737216134717,12.7332,257.4,257.22,53.18215202]
[1737216135219,0.70442106,257.39,257.22,53.18215202]
[1737216135516,0.70442106,257.39,257.18,29.7926378]
[1737216135517,10.91991655,257.39,257.18,29.7926378]
[1737216135816,10.91991655,257.39,257.2,12.7332]
[1737216135817,30.99056501,257.32,257.2,12.7332]
[1737216136112,30.99056501,257.3,257.17,30.99056501]
[1737216136411,9.29303842,257.38,257.14,16.6221]
[1737216136613,9.29303842,257.38,257.14,3.12163678]
[1737216136816,9.29303842,257.38,256.99,169.21711046]
[1737216137120,9.29303842,257.38,257.14,3.121637]
[1737216137504,30.99056501,257.18,257.0,0.71150639]
[1737216137707,30.99056501,257.29,257.16,30.99056501]
[1737216138010,9.29303842,257.38,256.96,30.99056501]
[1737216138214,9.29303842,257.38,256.98,193.03656779]
[1737216138513,9.29303842,257.38,257.01,20.0]
[1737216138726,9.15233842,257.38,257.08,193.03656779]
[1737216138933,9.01163842,257.38,257.08,193.03656779]
[1737216139115,9.01163842,257.38,257.36,30.99056501]
[1737216139315,12.7332,257.73,257.29,234.85656779]
[1737216139498,30.99056501,257.82,257.69,30.99056501]
[1737216139703,30.99056501,257.73,257.44,30.99056501]
[1737216139998,10.27727113,257.83,257.44,30.99056501]
[1737216140502,10.27727113,257.83,257.45,0.71026274]
[1737216140721,10.27727113,257.83,257.44,30.99056501]
[1737216140899,10.27727113,257.83,257.82,30.99056501]
[1737216141101,8.0892,258.1,257.82,30.99056501]
[1737216141299,8.0892,258.1,257.95,30.99056501]
[1737216141300,30.99056501,258.09,257.95,30.99056501]
[1737216141624,30.99056501,258.07,257.95,30.99056501]
[1737216141802,8.0892,258.1,257.76,30.99056501]
[1737216142118,11.9636,258.1,257.76,30.99056501]
[1737216142316,30.99056501,257.97,257.84,30.99056501]
[1737216142616,30.99056501,257.88,257.76,30.99056501]
[1737216142818,30.99056501,257.93,257.6,30.99056501]
[1737216143020,11.9636,258.1,257.6,30.99056501]
[1737216143220,30.99056501,258.11,257.61,2.7320834]
[1737216143409,3.8722,258.26,257.71,193.03656779]
[1737216143600,13.5523,258.26,257.71,193.03656779]
[1737216143806,13.5523,258.26,257.62,0.70979404]
[1737216144006,0.70442106,258.25,257.62,0.70979404]
[1737216144410,30.99056501,257.95,257.84,30.99056501]
[1737216144611,30.99056501,258.08,257.87,30.99056501]
[1737216144612,30.99056501,257.99,257.87,30.99056501]
[1737216145125,30.99056501,257.93,257.8,30.99056501]
[1737216145324,30.99056501,257.98,257.84,30.99056501]
[1737216145626,30.99056501,257.96,257.84,30.99056501]
[1737216145812,30.99056501,257.96,257.82,30.99056501]
[1737216146140,30.99056501,257.96,257.74,15.507485]
[1737216146141,30.99056501,257.85,257.74,30.99056501]
[1737216146311,30.99056501,257.93,257.81,30.99056501]
[1737216146512,30.99056501,257.95,257.83,30.99056501]
[1737216146720,30.99056501,257.97,257.83,30.99056501]
[1737216146919,6.0,257.99,257.89,30.99056501]
[1737216147102,6.0,257.99,257.76,30.99056501]
[1737216147103,30.99056501,257.96,257.83,30.99056501]
[1737216147422,30.99056501,257.88,257.77,30.99056501]
[1737216147625,30.99056501,257.98,257.85,30.99056501]
[1737216147837,30.99056501,257.98,257.73,15.508143]
[1737216147838,6.0,257.99,257.76,20.0]
[1737216148124,12.0,257.99,257.97,30.99056501]
[1737216148332,12.0,257.99,257.92,30.99056501]
[1737216148626,12.0,257.99,257.82,20.0]
[1737216148627,12.0,257.99,257.96,20.0]
[1737216148939,12.0,257.99,257.76,30.99056501]
[1737216148940,30.99056501,257.97,257.76,30.99056501]
[1737216149229,30.99056501,257.98,257.86,30.99056501]
[1737216149429,12.0,257.99,257.73,27.068143]
[1737216149430,12.0,257.99,257.74,35.336884]
[1737216149614,12.0,257.99,257.88,30.99056501]
[1737216149926,30.99056501,257.94,257.83,30.99056501]
[1737216150127,30.99056501,257.95,257.83,30.99056501]
[1737216150328,42.99056501,257.99,257.88,30.99056501]
[1737216150518,30.99056501,257.97,257.86,30.99056501]